[Event "Early-Titled-Tuesday-Blitz-July-09-2024"]
[Site "Chess.com"]
[Date "2024.07.09"]
[Round "3"]
[White "Timerkhanov"]
[Black "Rosh1610"]
[Result "1-0"]
[WhiteElo "2686"]
[BlackElo "2463"]
[TimeControl "180+1"]
[EndTime "8:28:37 PDT"]
[Termination "Timerkhanov won by checkmate"]

1. d4 {[%clk 0:02:56.1]} 1... Nf6 {[%clk 0:02:58.2]} 2. Bg5 {[%clk 0:02:56.5]}
2... d5 {[%clk 0:02:55.4]} 3. Nd2 {[%clk 0:02:56.6]} 3... c5 {[%clk 0:02:53.5]}
4. dxc5 {[%clk 0:02:57.5]} 4... Nc6 {[%clk 0:02:53]} 5. a3 {[%clk 0:02:54.6]}
5... e5 {[%clk 0:02:49.2]} 6. b4 {[%clk 0:02:54]} 6... a5 {[%clk 0:02:45.7]} 7.
c3 {[%clk 0:02:43.7]} 7... axb4 {[%clk 0:02:43.2]} 8. axb4 {[%clk 0:02:36.9]}
8... Rxa1 {[%clk 0:02:41.8]} 9. Qxa1 {[%clk 0:02:37.8]} 9... h6 {[%clk
0:02:22.9]} 10. Bxf6 {[%clk 0:02:37.1]} 10... Qxf6 {[%clk 0:02:23.8]} 11. e3
{[%clk 0:02:36.7]} 11... Be7 {[%clk 0:02:21.1]} 12. Ngf3 {[%clk 0:02:35.6]}
12... O-O {[%clk 0:02:20.1]} 13. Bb5 {[%clk 0:02:31.8]} 13... Bd7 {[%clk
0:02:00.1]} 14. O-O {[%clk 0:02:16]} 14... g5 {[%clk 0:01:55.9]} 15. Bxc6 {[%clk
0:02:11.9]} 15... Bxc6 {[%clk 0:01:50]} 16. c4 {[%clk 0:02:09.7]} 16... dxc4
{[%clk 0:01:35.3]} 17. Nxe5 {[%clk 0:02:08.1]} 17... Bb5 {[%clk 0:00:52.1]} 18.
Nexc4 {[%clk 0:02:00.5]} 18... Qe6 {[%clk 0:00:51.3]} 19. Rc1 {[%clk 0:01:58.4]}
19... Rd8 {[%clk 0:00:48.4]} 20. Qc3 {[%clk 0:01:50.7]} 20... Bf6 {[%clk
0:00:46.1]} 21. Qc2 {[%clk 0:01:50.2]} 21... Bg7 {[%clk 0:00:31.2]} 22. Nd6
{[%clk 0:01:48.9]} 22... Bc6 {[%clk 0:00:25.3]} 23. b5 {[%clk 0:01:47.2]} 23...
Rxd6 {[%clk 0:00:13.4]} 24. cxd6 {[%clk 0:01:44.6]} 24... Bxb5 {[%clk
0:00:13.5]} 25. Qc8+ {[%clk 0:01:42.9]} 25... Bf8 {[%clk 0:00:12.5]} 26. Qxe6
{[%clk 0:01:41.9]} 26... fxe6 {[%clk 0:00:13.4]} 27. Ne4 {[%clk 0:01:41.7]}
27... Bc6 {[%clk 0:00:13.2]} 28. d7 {[%clk 0:01:25.1]} 28... Be7 {[%clk
0:00:13]} 29. Nd6 {[%clk 0:01:18]} 29... Bxd7 {[%clk 0:00:10.8]} 30. Rc7 {[%clk
0:01:15.8]} 30... Bxd6 {[%clk 0:00:10.5]} 31. Rxd7 {[%clk 0:01:16.3]} 31... Be5
{[%clk 0:00:10.2]} 32. Rxb7 {[%clk 0:01:16.6]} 32... Bf6 {[%clk 0:00:10.4]} 33.
g3 {[%clk 0:01:17]} 33... e5 {[%clk 0:00:10.6]} 34. Kg2 {[%clk 0:01:17.3]} 34...
g4 {[%clk 0:00:10.9]} 35. h3 {[%clk 0:01:17]} 35... gxh3+ {[%clk 0:00:10.7]} 36.
Kxh3 {[%clk 0:01:16.4]} 36... Bg7 {[%clk 0:00:11.6]} 37. Kg4 {[%clk 0:01:16.5]}
37... Kh7 {[%clk 0:00:12.5]} 38. Kh5 {[%clk 0:01:16.8]} 38... e4 {[%clk
0:00:11.4]} 39. Re7 {[%clk 0:01:16.2]} 39... Kg8 {[%clk 0:00:10.9]} 40. Kg6
{[%clk 0:01:16.8]} 40... Bc3 {[%clk 0:00:11.4]} 41. Re8# {[%clk 0:01:16.8]} 1-0

[Event "Early-Titled-Tuesday-Blitz-July-09-2024"]
[Site "Chess.com"]
[Date "2024.07.09"]
[Round "3"]
[White "Alex_Banzea"]
[Black "ilqar_74"]
[Result "0-1"]
[WhiteElo "2701"]
[BlackElo "2908"]
[TimeControl "180+1"]
[EndTime "8:28:38 PDT"]
[Termination "ilqar_74 won by resignation"]

1. d4 {[%clk 0:03:00.9]} 1... Nf6 {[%clk 0:02:58.2]} 2. Nc3 {[%clk 0:03:01.3]}
2... d5 {[%clk 0:02:52]} 3. Bf4 {[%clk 0:03:01.6]} 3... e6 {[%clk 0:02:51.3]} 4.
e3 {[%clk 0:03:01.6]} 4... c5 {[%clk 0:02:50]} 5. Nb5 {[%clk 0:03:01.5]} 5...
Na6 {[%clk 0:02:49.8]} 6. c3 {[%clk 0:03:01.8]} 6... Be7 {[%clk 0:02:50.1]} 7.
Bd3 {[%clk 0:03:00.5]} 7... O-O {[%clk 0:02:49.9]} 8. Nf3 {[%clk 0:02:58.9]}
8... Bd7 {[%clk 0:02:50.3]} 9. a4 {[%clk 0:02:57]} 9... Ne4 {[%clk 0:02:48.7]}
10. Ne5 {[%clk 0:02:46.3]} 10... Be8 {[%clk 0:02:47.3]} 11. h4 {[%clk
0:02:15.1]} 11... f5 {[%clk 0:02:44.3]} 12. g3 {[%clk 0:02:01.7]} 12... Nf6
{[%clk 0:02:30.4]} 13. g4 {[%clk 0:01:47.9]} 13... Ne4 {[%clk 0:02:22.3]} 14. g5
{[%clk 0:01:24.5]} 14... c4 {[%clk 0:02:17.5]} 15. Bc2 {[%clk 0:01:10]} 15...
Bf7 {[%clk 0:02:02.2]} 16. f3 {[%clk 0:01:04.3]} 16... Nd6 {[%clk 0:02:02.3]}
17. Nxd6 {[%clk 0:00:36.9]} 17... Bxd6 {[%clk 0:02:00.9]} 18. Qe2 {[%clk
0:00:37.8]} 18... Bh5 {[%clk 0:01:59.8]} 19. Qg2 {[%clk 0:00:31]} 19... Nc7
{[%clk 0:01:59.1]} 20. Qg3 {[%clk 0:00:30.2]} 20... Qe8 {[%clk 0:01:57.3]} 21.
Kd2 {[%clk 0:00:29.7]} 21... b5 {[%clk 0:01:52.5]} 22. axb5 {[%clk 0:00:28.4]}
22... Qxb5 {[%clk 0:01:52.4]} 23. Ng6 {[%clk 0:00:22.6]} 23... Bxg6 {[%clk
0:01:22.7]} 24. Bxd6 {[%clk 0:00:22.2]} 24... f4 {[%clk 0:01:23.2]} 25. Bxf4
{[%clk 0:00:18]} 25... Qxb2 {[%clk 0:01:21.4]} 26. Rhc1 {[%clk 0:00:04.1]} 26...
Bxc2 {[%clk 0:01:17.4]} 27. Rxc2 {[%clk 0:00:03.2]} 27... Qxa1 {[%clk
0:01:16.4]} 28. Bxc7 {[%clk 0:00:04.1]} 28... Qf1 {[%clk 0:01:15.9]} 29. Bf4
{[%clk 0:00:04.1]} 29... a5 {[%clk 0:01:10.1]} 30. h5 {[%clk 0:00:04.3]} 30...
a4 {[%clk 0:01:09.5]} 31. h6 {[%clk 0:00:05.2]} 31... g6 {[%clk 0:01:08.6]} 32.
Qg4 {[%clk 0:00:05.5]} 32... Rf5 {[%clk 0:01:06.6]} 33. Qg3 {[%clk 0:00:04.2]}
33... a3 {[%clk 0:01:05.6]} 34. Qe1 {[%clk 0:00:03.2]} 0-1

[Event "Early-Titled-Tuesday-Blitz-July-09-2024"]
[Site "Chess.com"]
[Date "2024.07.09"]
[Round "3"]
[White "2Coaches1Profile"]
[Black "Chessgod9oninsta"]
[Result "1-0"]
[WhiteElo "2578"]
[BlackElo "2785"]
[TimeControl "180+1"]
[EndTime "8:28:38 PDT"]
[Termination "2Coaches1Profile won by resignation"]

1. e4 {[%clk 0:02:59.3]} 1... e5 {[%clk 0:02:57]} 2. Nc3 {[%clk 0:02:58.8]} 2...
Nc6 {[%clk 0:02:55.7]} 3. Bc4 {[%clk 0:02:58.2]} 3... Nf6 {[%clk 0:02:55.2]} 4.
d3 {[%clk 0:02:57.7]} 4... Bb4 {[%clk 0:02:54.3]} 5. Ne2 {[%clk 0:02:57.7]} 5...
d5 {[%clk 0:02:53.7]} 6. exd5 {[%clk 0:02:57]} 6... Nxd5 {[%clk 0:02:54.6]} 7.
O-O {[%clk 0:02:57.4]} 7... Be6 {[%clk 0:02:51.4]} 8. Bd2 {[%clk 0:02:47.1]}
8... O-O {[%clk 0:02:47.7]} 9. Nxd5 {[%clk 0:02:44.8]} 9... Bxd5 {[%clk
0:02:46.9]} 10. Bxd5 {[%clk 0:02:41.5]} 10... Qxd5 {[%clk 0:02:45.2]} 11. Bxb4
{[%clk 0:02:41.8]} 11... Nxb4 {[%clk 0:02:44.5]} 12. Qd2 {[%clk 0:02:22.7]}
12... Nc6 {[%clk 0:02:42.5]} 13. Nc3 {[%clk 0:02:22.9]} 13... Qd7 {[%clk
0:02:41.4]} 14. Rae1 {[%clk 0:02:23]} 14... Rfe8 {[%clk 0:02:38.6]} 15. Kh1
{[%clk 0:02:20.8]} 15... Rad8 {[%clk 0:02:36.8]} 16. f4 {[%clk 0:02:19.4]} 16...
f6 {[%clk 0:02:32.2]} 17. h3 {[%clk 0:02:14.5]} 17... exf4 {[%clk 0:02:26.1]}
18. Qxf4 {[%clk 0:02:12]} 18... Nd4 {[%clk 0:02:22.2]} 19. Qf2 {[%clk
0:02:07.5]} 19... c5 {[%clk 0:02:18.7]} 20. Ne4 {[%clk 0:02:06.6]} 20... b6
{[%clk 0:02:17.7]} 21. Qg3 {[%clk 0:01:52.1]} 21... Kh8 {[%clk 0:02:10.1]} 22.
c3 {[%clk 0:01:49.8]} 22... Nc6 {[%clk 0:02:06.7]} 23. Re3 {[%clk 0:01:02.6]}
23... Ne5 {[%clk 0:01:49.6]} 24. Rxf6 {[%clk 0:00:54]} 24... Nxd3 {[%clk
0:01:04.7]} 25. Rd6 {[%clk 0:00:42.2]} 25... Qf5 {[%clk 0:00:49.7]} 26. Rexd3
{[%clk 0:00:29.8]} 26... Rxd6 {[%clk 0:00:46.4]} 27. Nxd6 {[%clk 0:00:22.5]}
27... Qf1+ {[%clk 0:00:46.4]} 28. Kh2 {[%clk 0:00:22.7]} 28... Re1 {[%clk
0:00:46.4]} 29. Nf7+ {[%clk 0:00:20.6]} 29... Kg8 {[%clk 0:00:46.1]} 30. Nh6+
{[%clk 0:00:19.9]} 30... Kf8 {[%clk 0:00:46.3]} 31. Rf3+ {[%clk 0:00:17.9]} 1-0

[Event "Early-Titled-Tuesday-Blitz-July-09-2024"]
[Site "Chess.com"]
[Date "2024.07.09"]
[Round "3"]
[White "Stanbad1"]
[Black "JavierRuizVazquez"]
[Result "0-1"]
[WhiteElo "2592"]
[BlackElo "2402"]
[TimeControl "180+1"]
[EndTime "8:28:38 PDT"]
[Termination "JavierRuizVazquez won by resignation"]

1. d4 {[%clk 0:03:00.9]} 1... Nf6 {[%clk 0:02:59.1]} 2. Nc3 {[%clk 0:03:01.3]}
2... d5 {[%clk 0:02:58.3]} 3. Bf4 {[%clk 0:03:01.4]} 3... Bf5 {[%clk 0:02:56.5]}
4. e3 {[%clk 0:03:01.3]} 4... e6 {[%clk 0:02:56]} 5. Nf3 {[%clk 0:03:01.2]} 5...
Bb4 {[%clk 0:02:56.3]} 6. Bd3 {[%clk 0:03:00.1]} 6... Ne4 {[%clk 0:02:55.9]} 7.
O-O {[%clk 0:03:00]} 7... Bxc3 {[%clk 0:02:40.6]} 8. bxc3 {[%clk 0:02:59]} 8...
Nxc3 {[%clk 0:02:36.3]} 9. Qe1 {[%clk 0:02:59.1]} 9... Ne4 {[%clk 0:02:36.2]}
10. Qb4 {[%clk 0:02:56.6]} 10... b6 {[%clk 0:02:33.1]} 11. c4 {[%clk 0:02:53.5]}
11... Nd7 {[%clk 0:02:22.6]} 12. cxd5 {[%clk 0:02:51.1]} 12... exd5 {[%clk
0:02:23.5]} 13. Rfc1 {[%clk 0:02:49.2]} 13... c5 {[%clk 0:02:23.1]} 14. dxc5
{[%clk 0:02:47.1]} 14... bxc5 {[%clk 0:02:24]} 15. Qa4 {[%clk 0:02:46.8]} 15...
O-O {[%clk 0:02:21]} 16. Rab1 {[%clk 0:02:35]} 16... c4 {[%clk 0:02:12.9]} 17.
Nd4 {[%clk 0:02:28.2]} 17... Ndc5 {[%clk 0:01:54.9]} 18. Qa3 {[%clk 0:02:24.7]}
18... Nxd3 {[%clk 0:01:49.4]} 19. Nxf5 {[%clk 0:02:23.3]} 19... Nxc1 {[%clk
0:01:44.7]} 20. Rxc1 {[%clk 0:02:24.2]} 20... Qf6 {[%clk 0:01:41.5]} 21. Ne7+
{[%clk 0:02:21.4]} 21... Kh8 {[%clk 0:01:41.5]} 22. Nxd5 {[%clk 0:02:21.7]}
22... Qd8 {[%clk 0:01:22]} 23. Rd1 {[%clk 0:02:01]} 23... Qh4 {[%clk 0:01:17]}
24. g3 {[%clk 0:01:51.1]} 24... Qh5 {[%clk 0:01:16.4]} 25. Rd4 {[%clk
0:01:48.8]} 25... Qf3 {[%clk 0:00:56.1]} 26. Qb2 {[%clk 0:01:47.6]} 26... Rad8
{[%clk 0:00:31.4]} 27. Qc2 {[%clk 0:01:41.8]} 27... Rxd5 {[%clk 0:00:27.5]} 28.
Rxd5 {[%clk 0:01:40.4]} 28... Nxg3 {[%clk 0:00:28]} 29. Bxg3 {[%clk 0:01:12.5]}
29... Qxd5 {[%clk 0:00:27.9]} 30. Qc3 {[%clk 0:01:10.4]} 30... Rd8 {[%clk
0:00:24.4]} 31. Be5 {[%clk 0:01:07.9]} 31... Qd1+ {[%clk 0:00:20.7]} 32. Kg2
{[%clk 0:01:06.4]} 32... Qg4+ {[%clk 0:00:21.2]} 33. Bg3 {[%clk 0:01:05.7]}
33... Qe4+ {[%clk 0:00:21]} 34. f3 {[%clk 0:01:04.7]} 34... Qd3 {[%clk
0:00:20.1]} 35. Qa5 {[%clk 0:01:04.8]} 35... Qd2+ {[%clk 0:00:20.1]} 36. Qxd2
{[%clk 0:01:02.7]} 36... Rxd2+ {[%clk 0:00:21]} 37. Kh3 {[%clk 0:01:02.5]} 37...
c3 {[%clk 0:00:20.6]} 38. Be5 {[%clk 0:01:03.2]} 38... c2 {[%clk 0:00:20.2]} 39.
Bb2 {[%clk 0:01:03.9]} 39... Rd1 {[%clk 0:00:20]} 40. e4 {[%clk 0:01:03.1]}
40... c1=Q {[%clk 0:00:20.5]} 41. Bxc1 {[%clk 0:01:03.1]} 41... Rxc1 {[%clk
0:00:21.4]} 42. f4 {[%clk 0:01:03.8]} 42... f6 {[%clk 0:00:21.5]} 0-1

[Event "Early-Titled-Tuesday-Blitz-July-09-2024"]
[Site "Chess.com"]
[Date "2024.07.09"]
[Round "3"]
[White "Sinquefield"]
[Black "PLAYER_2006_M"]
[Result "0-1"]
[WhiteElo "2522"]
[BlackElo "2941"]
[TimeControl "180+1"]
[EndTime "8:28:43 PDT"]
[Termination "PLAYER_2006_M won by resignation"]

1. d4 {[%clk 0:03:00.9]} 1... e6 {[%clk 0:02:57.8]} 2. Nf3 {[%clk 0:03:00.6]}
2... b6 {[%clk 0:02:56.5]} 3. c3 {[%clk 0:02:59.5]} 3... Bb7 {[%clk 0:02:55.3]}
4. Bg5 {[%clk 0:02:59.9]} 4... Be7 {[%clk 0:02:55]} 5. Bxe7 {[%clk 0:02:58.9]}
5... Qxe7 {[%clk 0:02:55.5]} 6. e3 {[%clk 0:02:59.4]} 6... d6 {[%clk 0:02:55.5]}
7. Bd3 {[%clk 0:02:59.4]} 7... Nd7 {[%clk 0:02:55.9]} 8. Nbd2 {[%clk 0:02:59.9]}
8... Ngf6 {[%clk 0:02:54.3]} 9. Qe2 {[%clk 0:03:00.1]} 9... a6 {[%clk
0:02:53.2]} 10. O-O {[%clk 0:02:58.5]} 10... O-O {[%clk 0:02:51.8]} 11. e4
{[%clk 0:02:58.6]} 11... e5 {[%clk 0:02:50.2]} 12. Rfe1 {[%clk 0:02:56.9]} 12...
g6 {[%clk 0:02:44.1]} 13. Qe3 {[%clk 0:02:41]} 13... Kg7 {[%clk 0:02:42.4]} 14.
a4 {[%clk 0:02:38.5]} 14... Rfe8 {[%clk 0:02:38.5]} 15. dxe5 {[%clk 0:02:35.3]}
15... Nxe5 {[%clk 0:02:31.2]} 16. Nxe5 {[%clk 0:02:34.1]} 16... Qxe5 {[%clk
0:02:29.6]} 17. Qg3 {[%clk 0:01:44.6]} 17... Nh5 {[%clk 0:02:17.4]} 18. Qxe5+
{[%clk 0:01:40.6]} 18... dxe5 {[%clk 0:02:18.3]} 19. Rad1 {[%clk 0:01:34.7]}
19... Nf4 {[%clk 0:02:17.3]} 20. Bf1 {[%clk 0:01:30.6]} 20... Rad8 {[%clk
0:02:14.1]} 21. g3 {[%clk 0:01:28]} 21... Ne6 {[%clk 0:02:13.6]} 22. Nc4 {[%clk
0:01:27.1]} 22... f6 {[%clk 0:02:10.7]} 23. f3 {[%clk 0:01:19.5]} 23... Nc5
{[%clk 0:02:09.5]} 24. a5 {[%clk 0:01:19.7]} 24... b5 {[%clk 0:02:09.7]} 25. Ne3
{[%clk 0:01:19.7]} 25... Na4 {[%clk 0:02:08]} 26. Rxd8 {[%clk 0:01:17.6]} 26...
Rxd8 {[%clk 0:02:08.9]} 27. Rd1 {[%clk 0:01:18.2]} 27... Rd6 {[%clk 0:02:02]}
28. Rxd6 {[%clk 0:01:08]} 28... cxd6 {[%clk 0:02:02.9]} 29. b4 {[%clk
0:01:08.1]} 29... Nxc3 {[%clk 0:02:01.3]} 30. Kf2 {[%clk 0:01:01.9]} 30... Na2
{[%clk 0:02:01.2]} 31. Nc2 {[%clk 0:01:01.6]} 31... d5 {[%clk 0:01:58]} 32. Ke3
{[%clk 0:00:54.6]} 32... f5 {[%clk 0:01:52.9]} 33. exd5 {[%clk 0:00:51.2]} 33...
Bxd5 {[%clk 0:01:51.3]} 34. f4 {[%clk 0:00:50.4]} 34... Bb3 {[%clk 0:01:47.3]}
35. Kd2 {[%clk 0:00:41.2]} 35... Bxc2 {[%clk 0:01:36.9]} 36. Kxc2 {[%clk
0:00:42.1]} 36... Nxb4+ {[%clk 0:01:33.9]} 37. Kb3 {[%clk 0:00:41]} 37... Nc6
{[%clk 0:01:34.1]} 38. fxe5 {[%clk 0:00:38.9]} 38... Nxe5 {[%clk 0:01:29.1]} 39.
Bxb5 {[%clk 0:00:36.9]} 39... axb5 {[%clk 0:01:28.7]} 40. Kb4 {[%clk 0:00:36.5]}
40... Nc6+ {[%clk 0:01:23.6]} 41. Kxb5 {[%clk 0:00:36.8]} 41... Nxa5 {[%clk
0:01:18]} 42. Kxa5 {[%clk 0:00:37.7]} 42... Kf6 {[%clk 0:01:18.7]} 43. Kb4
{[%clk 0:00:38.2]} 43... Ke5 {[%clk 0:01:19.4]} 44. Kc3 {[%clk 0:00:38.8]} 44...
Ke4 {[%clk 0:01:19.8]} 45. Kd2 {[%clk 0:00:37.1]} 45... Kf3 {[%clk 0:01:20]} 46.
Kd3 {[%clk 0:00:36.9]} 46... Kg2 {[%clk 0:01:20.2]} 47. Ke3 {[%clk 0:00:37.8]}
47... Kxh2 {[%clk 0:01:20.5]} 48. Kf4 {[%clk 0:00:38.7]} 48... h5 {[%clk
0:01:20.1]} 49. Kg5 {[%clk 0:00:39]} 49... Kxg3 {[%clk 0:01:19.7]} 50. Kxg6
{[%clk 0:00:39.9]} 50... f4 {[%clk 0:01:20.2]} 51. Kxh5 {[%clk 0:00:40.8]} 51...
f3 {[%clk 0:01:20.7]} 52. Kg5 {[%clk 0:00:41.7]} 52... f2 {[%clk 0:01:21.3]} 53.
Kh5 {[%clk 0:00:42.6]} 53... f1=Q {[%clk 0:01:21.7]} 54. Kg5 {[%clk 0:00:43.5]}
54... Qf7 {[%clk 0:01:21.1]} 55. Kh6 {[%clk 0:00:39.2]} 55... Qg8 {[%clk
0:01:20.2]} 0-1

[Event "Early-Titled-Tuesday-Blitz-July-09-2024"]
[Site "Chess.com"]
[Date "2024.07.09"]
[Round "3"]
[White "Adrian-thorsen"]
[Black "KhamzinOlzhas"]
[Result "0-1"]
[WhiteElo "2318"]
[BlackElo "2565"]
[TimeControl "180+1"]
[EndTime "8:28:43 PDT"]
[Termination "KhamzinOlzhas won on time"]

1. e4 {[%clk 0:03:00.9]} 1... c5 {[%clk 0:02:59.7]} 2. Nf3 {[%clk 0:02:59]} 2...
d6 {[%clk 0:03:00.2]} 3. c3 {[%clk 0:02:57.1]} 3... Nf6 {[%clk 0:02:59.9]} 4. h3
{[%clk 0:02:55]} 4... g6 {[%clk 0:02:59.5]} 5. Bd3 {[%clk 0:02:52.2]} 5... Bg7
{[%clk 0:02:59.6]} 6. Bc2 {[%clk 0:02:51.4]} 6... O-O {[%clk 0:03:00.1]} 7. O-O
{[%clk 0:02:51.1]} 7... Nc6 {[%clk 0:02:59.6]} 8. d4 {[%clk 0:02:49.8]} 8...
cxd4 {[%clk 0:02:49.8]} 9. cxd4 {[%clk 0:02:48]} 9... d5 {[%clk 0:02:50.2]} 10.
e5 {[%clk 0:02:46.9]} 10... Ne4 {[%clk 0:02:50.7]} 11. Nc3 {[%clk 0:02:45.9]}
11... Bf5 {[%clk 0:02:47.7]} 12. g4 {[%clk 0:02:33.5]} 12... Nxc3 {[%clk
0:02:39.3]} 13. bxc3 {[%clk 0:02:34.4]} 13... Bxc2 {[%clk 0:02:37.5]} 14. Qxc2
{[%clk 0:02:35.3]} 14... Na5 {[%clk 0:02:37]} 15. Rb1 {[%clk 0:02:33.7]} 15...
b6 {[%clk 0:02:36.9]} 16. Nd2 {[%clk 0:02:26.9]} 16... Rc8 {[%clk 0:02:34.7]}
17. f4 {[%clk 0:02:22.4]} 17... e6 {[%clk 0:02:33.5]} 18. Kh2 {[%clk 0:02:00.4]}
18... h5 {[%clk 0:02:21]} 19. gxh5 {[%clk 0:01:22.2]} 19... gxh5 {[%clk
0:02:16.5]} 20. Rg1 {[%clk 0:01:21.3]} 20... Kh8 {[%clk 0:02:12.9]} 21. Qd1
{[%clk 0:01:13.3]} 21... Qh4 {[%clk 0:01:16.4]} 22. Rg5 {[%clk 0:00:35.9]} 22...
Qxf4+ {[%clk 0:01:04.6]} 23. Rg3 {[%clk 0:00:18.4]} 23... h4 {[%clk 0:01:03]}
24. Qh5+ {[%clk 0:00:11.2]} 24... Kg8 {[%clk 0:01:02.9]} 25. Nf1 {[%clk
0:00:05.8]} 25... hxg3+ {[%clk 0:01:02.5]} 26. Nxg3 {[%clk 0:00:06.7]} 26...
Qf2+ {[%clk 0:01:02.8]} 27. Kh1 {[%clk 0:00:05.5]} 27... Qxg3 {[%clk 0:01:00.8]}
28. Bh6 {[%clk 0:00:05.2]} 28... Qg6 {[%clk 0:00:56.1]} 29. Qf3 {[%clk 0:00:02]}
29... Qxb1+ {[%clk 0:00:55.6]} 0-1

[Event "Early-Titled-Tuesday-Blitz-July-09-2024"]
[Site "Chess.com"]
[Date "2024.07.09"]
[Round "3"]
[White "Millerkallpa"]
[Black "aanshnerurkar"]
[Result "1-0"]
[WhiteElo "2250"]
[BlackElo "2459"]
[TimeControl "180+1"]
[EndTime "8:28:44 PDT"]
[Termination "Millerkallpa won on time"]

1. e4 {[%clk 0:03:00.9]} 1... c5 {[%clk 0:02:59.3]} 2. Nf3 {[%clk 0:03:00.3]}
2... d6 {[%clk 0:02:59.6]} 3. c3 {[%clk 0:03:00.5]} 3... Nf6 {[%clk 0:02:59.1]}
4. Be2 {[%clk 0:03:00.4]} 4... Nc6 {[%clk 0:02:57.1]} 5. d4 {[%clk 0:02:59.9]}
5... cxd4 {[%clk 0:02:56.9]} 6. cxd4 {[%clk 0:03:00.8]} 6... Nxe4 {[%clk
0:02:57.3]} 7. d5 {[%clk 0:03:00.3]} 7... Qa5+ {[%clk 0:02:57.4]} 8. Nc3 {[%clk
0:03:00]} 8... Nxc3 {[%clk 0:02:57.4]} 9. bxc3 {[%clk 0:03:00.9]} 9... Ne5
{[%clk 0:02:52.7]} 10. O-O {[%clk 0:03:00.6]} 10... Bd7 {[%clk 0:02:32]} 11.
Nxe5 {[%clk 0:02:58.3]} 11... dxe5 {[%clk 0:02:31.5]} 12. Be3 {[%clk 0:02:56.4]}
12... Qc7 {[%clk 0:02:17.5]} 13. c4 {[%clk 0:02:54.6]} 13... e6 {[%clk
0:02:15.5]} 14. Rb1 {[%clk 0:02:39.4]} 14... b6 {[%clk 0:02:10.9]} 15. Bf3
{[%clk 0:02:35]} 15... Rc8 {[%clk 0:02:08.9]} 16. Qd2 {[%clk 0:02:11.6]} 16...
Bc5 {[%clk 0:02:00.7]} 17. dxe6 {[%clk 0:02:07.1]} 17... Bxe6 {[%clk 0:02:00.3]}
18. Bxc5 {[%clk 0:02:07.4]} 18... Qxc5 {[%clk 0:01:59.8]} 19. Rb5 {[%clk
0:02:08]} 19... Qc7 {[%clk 0:01:51.1]} 20. c5 {[%clk 0:02:01.2]} 20... O-O
{[%clk 0:01:27.7]} 21. cxb6 {[%clk 0:02:00]} 21... axb6 {[%clk 0:01:27]} 22. Qb2
{[%clk 0:02:00.4]} 22... Qc2 {[%clk 0:00:14.5]} 23. Rxb6 {[%clk 0:01:44.2]}
23... Bxa2 {[%clk 0:00:09.5]} 24. h3 {[%clk 0:01:39.4]} 24... Qxb2 {[%clk
0:00:08.1]} 25. Rxb2 {[%clk 0:01:40.3]} 25... Bc4 {[%clk 0:00:08.2]} 26. Re1
{[%clk 0:01:40.5]} 26... f6 {[%clk 0:00:08]} 27. Rb7 {[%clk 0:01:39.8]} 27...
Rf7 {[%clk 0:00:07.2]} 28. Reb1 {[%clk 0:01:38.1]} 28... Rxb7 {[%clk 0:00:05.2]}
29. Rxb7 {[%clk 0:01:38.4]} 29... Bd3 {[%clk 0:00:05.2]} 30. Bd5+ {[%clk
0:01:36.8]} 30... Kh8 {[%clk 0:00:05.4]} 31. Kh2 {[%clk 0:01:36.2]} 31... Rd8
{[%clk 0:00:05.5]} 32. Kg3 {[%clk 0:01:34]} 32... h6 {[%clk 0:00:04]} 33. Bc6
{[%clk 0:01:30.3]} 33... Kh7 {[%clk 0:00:03.4]} 34. Kf3 {[%clk 0:01:30.2]} 34...
Bg6 {[%clk 0:00:02.9]} 35. Ke3 {[%clk 0:01:30.1]} 35... Rd3+ {[%clk 0:00:02.8]}
36. Ke2 {[%clk 0:01:30.3]} 36... Rc3 {[%clk 0:00:03.1]} 37. Bd7 {[%clk
0:01:29.3]} 37... Rc2+ {[%clk 0:00:03.1]} 38. Ke1 {[%clk 0:01:29.5]} 38... e4
{[%clk 0:00:03.1]} 39. Bb5 {[%clk 0:01:25.4]} 39... f5 {[%clk 0:00:03.2]} 40.
Rb6 {[%clk 0:01:24.8]} 40... f4 {[%clk 0:00:02.5]} 41. Be2 {[%clk 0:01:21.3]}
1-0

[Event "Early-Titled-Tuesday-Blitz-July-09-2024"]
[Site "Chess.com"]
[Date "2024.07.09"]
[Round "3"]
[White "MarcoRiehle"]
[Black "DontMessWithTheFish"]
[Result "1-0"]
[WhiteElo "2853"]
[BlackElo "2600"]
[TimeControl "180+1"]
[EndTime "8:28:45 PDT"]
[Termination "MarcoRiehle won by checkmate"]

1. e4 {[%clk 0:03:00.9]} 1... c5 {[%clk 0:02:54.9]} 2. a3 {[%clk 0:02:59.9]}
2... g6 {[%clk 0:02:53.7]} 3. h4 {[%clk 0:02:59.1]} 3... h5 {[%clk 0:02:51.7]}
4. Nc3 {[%clk 0:02:58.4]} 4... Bg7 {[%clk 0:02:51.4]} 5. Bc4 {[%clk 0:02:58.8]}
5... Nc6 {[%clk 0:02:50.6]} 6. d3 {[%clk 0:02:58.9]} 6... b6 {[%clk 0:02:46.6]}
7. Bg5 {[%clk 0:02:58]} 7... Bb7 {[%clk 0:02:46]} 8. Nge2 {[%clk 0:02:57.2]}
8... Nf6 {[%clk 0:02:43.4]} 9. Qd2 {[%clk 0:02:55.1]} 9... a6 {[%clk 0:02:41]}
10. O-O-O {[%clk 0:02:54.4]} 10... b5 {[%clk 0:02:39.2]} 11. Ba2 {[%clk
0:02:54.5]} 11... Qa5 {[%clk 0:02:38.4]} 12. Kb1 {[%clk 0:02:53.4]} 12... b4
{[%clk 0:02:31.9]} 13. axb4 {[%clk 0:02:52.8]} 13... Nxb4 {[%clk 0:02:24.9]} 14.
Bb3 {[%clk 0:02:51]} 14... d6 {[%clk 0:02:16.5]} 15. f3 {[%clk 0:02:44.4]} 15...
Rb8 {[%clk 0:02:03.4]} 16. Nf4 {[%clk 0:02:36.9]} 16... Nh7 {[%clk 0:01:56.8]}
17. Ncd5 {[%clk 0:02:26.4]} 17... Nxg5 {[%clk 0:01:54.8]} 18. hxg5 {[%clk
0:02:25.8]} 18... Qd8 {[%clk 0:01:42.9]} 19. Nxb4 {[%clk 0:02:22.4]} 19... cxb4
{[%clk 0:01:43.8]} 20. g4 {[%clk 0:02:15.9]} 20... h4 {[%clk 0:01:36.1]} 21.
Ba4+ {[%clk 0:01:34.4]} 21... Kf8 {[%clk 0:01:33.6]} 22. Bb3 {[%clk 0:01:30.2]}
22... e6 {[%clk 0:01:01.4]} 23. Bxe6 {[%clk 0:01:27.8]} 23... Qxg5 {[%clk
0:01:01.2]} 24. Bb3 {[%clk 0:01:22.6]} 24... Bh6 {[%clk 0:00:57.1]} 25. Nxg6+
{[%clk 0:01:15]} 25... Qxg6 {[%clk 0:00:47.9]} 26. f4 {[%clk 0:01:11.8]} 26...
Qxg4 {[%clk 0:00:35.4]} 27. Qxb4 {[%clk 0:01:10.5]} 27... Bxf4 {[%clk
0:00:08.7]} 28. Rdf1 {[%clk 0:01:09]} 28... h3 {[%clk 0:00:02.6]} 29. Rhg1
{[%clk 0:01:07.2]} 29... Qh4 {[%clk 0:00:02.7]} 30. e5 {[%clk 0:01:04.7]} 30...
Bxe5 {[%clk 0:00:01.2]} 31. Rxf7+ {[%clk 0:01:02.3]} 31... Ke8 {[%clk
0:00:01.7]} 32. Qxh4 {[%clk 0:01:01.4]} 32... Rxh4 {[%clk 0:00:01.3]} 33. Rg8#
{[%clk 0:01:01.8]} 1-0